bitfinex/quotes_SOLUSD_20230402
["timestamp","ask_amount","ask_price","bid_price","bid_amount"]
[1680464916044,10.0,20.352,20.341,20.0]
[1680464916736,17.0,20.351,20.341,20.0]
[1680464917332,17.0,20.351,20.34,10.0]
[1680464917531,17.0,20.351,20.341,20.0]
[1680464918130,17.0,20.351,20.335,10.0]
[1680464918332,43.13,20.35,20.335,109.7339]
[1680464918532,17.0,20.349,20.335,109.7339]
[1680464918738,10.0,20.348,20.335,109.7339]
[1680464919348,10.0,20.348,20.336,10.0]
[1680464920337,10.0,20.348,20.337,19.651467]
[1680464921433,17.0,20.347,20.337,19.651467]
[1680464921643,10.0,20.346,20.337,19.651467]
[1680464921941,10.0,20.344,20.337,19.651467]
[1680464922139,17.0,20.343,20.337,19.651467]
[1680464922338,10.0,20.346,20.337,19.651467]
[1680464922553,17.0,20.345,20.337,19.651467]
[1680464923131,10.0,20.346,20.337,19.651467]
[1680464923345,17.0,20.347,20.337,19.651467]
[1680464924041,10.0,20.346,20.337,19.651467]
[1680464925331,10.0,20.344,20.337,19.651467]
[1680464925829,10.0,20.342,20.337,19.651467]
[1680464926228,10.0,20.344,20.337,19.651467]
[1680464926433,17.0,20.343,20.337,19.651467]
[1680464926633,54.82713659,20.36,20.337,19.651467]
[1680464926835,128.6878027,20.356,20.337,19.651467]
[1680464927043,155.7747,20.35,20.337,19.651467]
[1680464929454,10.0,20.348,20.337,19.651467]
[1680464930354,17.0,20.347,20.337,19.651467]
[1680464930545,10.0,20.346,20.337,19.651467]
[1680464930861,10.0,20.344,20.337,19.651467]
[1680464931432,10.0,20.342,20.337,19.651467]
[1680464931946,10.0,20.34,20.337,19.651467]
[1680464932147,17.0,20.339,20.337,19.651467]
[1680464932350,10.0,20.338,20.329,116.1467]
[1680464933755,10.0,20.34,20.329,116.1467]
[1680464933953,10.0,20.338,20.329,116.1467]
[1680464934141,10.0,20.338,20.324,127.6567]
[1680464934456,10.0,20.338,20.326,10.0]
[1680464935151,10.0,20.338,20.327,17.0]
[1680464935548,10.0,20.34,20.328,10.0]
[1680464935738,10.0,20.342,20.328,10.0]
[1680464937255,10.0,20.34,20.328,10.0]
[1680464938241,17.0,20.341,20.328,10.0]
[1680464938856,114.2355,20.347,20.329,17.0]
[1680464939057,37.0,20.345,20.33,10.0]
[1680464939264,10.0,20.344,20.33,10.0]
[1680464939442,20.0,20.343,20.33,10.0]
[1680464940455,10.0,20.341,20.33,10.0]
[1680464941063,20.0,20.343,20.33,10.0]
[1680464941861,10.0,20.344,20.33,10.0]
[1680464942064,10.0,20.342,20.33,10.0]
[1680464942257,10.0,20.344,20.332,10.0]
[1680464942757,112.6047,20.35,20.334,10.0]
[1680464943156,112.6047,20.35,20.335,17.0]
[1680464943351,112.6047,20.35,20.336,10.0]
[1680464943751,10.0,20.349,20.336,10.0]
[1680464946064,112.6047,20.35,20.336,10.0]
[1680464946246,10.0,20.348,20.336,10.0]
[1680464947260,10.0,20.349,20.336,10.0]
[1680464949066,112.6047,20.35,20.336,10.0]
[1680464953160,10.0,20.348,20.335,10.0]
[1680464953461,10.0,20.346,20.335,10.0]
[1680464953650,10.0,20.348,20.335,10.0]
[1680464953852,17.0,20.347,20.335,10.0]
[1680464955156,17.0,20.347,20.334,10.0]
[1680464955345,17.0,20.347,20.333,20.0]
[1680464956664,10.0,20.346,20.333,20.0]
[1680464956880,17.0,20.345,20.333,20.0]
[1680464957172,10.0,20.344,20.333,10.0]
[1680464957470,10.0,20.342,20.332,20.0]
[1680464957852,10.0,20.34,20.332,20.0]
[1680464958972,10.0,20.338,20.332,20.0]
[1680464959470,10.0,20.338,20.329,20.0]
[1680464959954,10.0,20.34,20.329,20.0]
[1680464960157,10.0,20.338,20.329,20.0]
[1680464960775,17.0,20.339,20.329,20.0]
[1680464961556,17.0,20.341,20.33,10.0]
[1680464961754,17.0,20.341,20.332,10.0]
[1680464961955,17.0,20.341,20.333,20.0]
[1680464962572,17.0,20.341,20.332,10.0]
[1680464962767,17.0,20.341,20.333,20.0]
[1680464963571,17.0,20.341,20.332,10.0]
[1680464963880,17.0,20.341,20.333,20.0]
[1680464964484,17.0,20.341,20.332,10.0]
[1680464964663,17.0,20.341,20.333,20.0]
[1680464964862,10.0,20.342,20.333,20.0]
[1680464965080,17.0,20.341,20.333,20.0]
[1680464965458,17.0,20.341,20.332,10.0]
[1680464965755,10.0,20.342,20.333,20.0]
[1680464965959,10.0,20.344,20.333,20.0]
[1680464966168,198.7747,20.35,20.333,20.0]
[1680464966355,155.6347,20.35,20.333,20.0]
[1680464966555,112.6047,20.35,20.335,10.0]
[1680464966861,10.0,20.349,20.335,10.0]
[1680464967261,112.6047,20.35,20.335,10.0]
[1680464967971,112.6047,20.35,20.337,10.0]
[1680464968476,10.0,20.348,20.337,10.0]
[1680464968856,10.0,20.353,20.339,10.0]
[1680464972062,10.0,20.355,20.339,10.0]
[1680464972378,10.0,20.353,20.339,118.5971]
[1680464972780,10.0,20.353,20.341,10.0]
[1680464973268,10.0,20.351,20.34,113.9709]
[1680464973478,10.0,20.349,20.34,113.9709]
[1680464973676,10.0,20.349,20.334,10.0]
[1680464973864,17.0,20.348,20.334,10.0]
[1680464974070,10.0,20.347,20.334,10.0]
[1680464974260,17.0,20.346,20.334,10.0]
[1680464974460,10.0,20.345,20.334,10.0]
[1680464974974,10.0,20.347,20.334,10.0]
[1680464975579,10.0,20.349,20.334,10.0]
[1680464975790,10.0,20.349,20.336,10.0]
[1680464976076,111.6889,20.35,20.336,10.0]
[1680464976260,111.6889,20.35,20.338,10.0]
[1680464976469,10.0,20.355,20.34,10.0]
[1680464976781,10.0,20.352,20.338,10.0]
[1680464976982,10.0,20.352,20.34,10.0]
[1680464977568,10.0,20.35,20.338,10.0]
[1680464977969,10.0,20.35,20.336,10.0]
[1680464979189,10.0,20.355,20.336,10.0]
[1680464979380,10.0,20.352,20.338,10.0]
[1680464979691,10.0,20.352,20.34,10.0]
[1680464981485,10.0,20.352,20.338,10.0]
[1680464981781,10.0,20.35,20.338,10.0]
[1680464981985,10.0,20.355,20.339,17.0]
[1680464982183,20.0,20.353,20.34,10.0]
[1680464983461,10.0,20.353,20.34,10.0]
[1680464984288,119.714,20.361,20.341,17.0]
[1680464984468,119.714,20.361,20.343,10.0]
[1680464984868,119.714,20.361,20.344,17.0]
[1680464985075,119.714,20.361,20.345,10.0]
[1680464985279,72.727709,20.36,20.345,10.0]
[1680464986478,62.727709,20.36,20.345,10.0]
[1680464986684,53.07,20.36,20.345,10.0]
[1680464989375,43.07,20.36,20.345,10.0]
[1680464989582,10.0,20.358,20.345,10.0]
[1680464991388,17.0,20.359,20.345,10.0]
[1680464991692,27.0,20.36,20.345,10.0]
[1680464992072,55.64,20.36,20.345,10.0]
[1680464992277,28.64,20.36,20.346,17.0]
[1680464992477,119.714,20.361,20.347,10.0]
[1680464993382,119.714,20.361,20.349,10.0]
[1680464996299,119.714,20.361,20.351,10.0]
[1680464996593,119.714,20.361,20.35,17.0]
[1680464996893,119.714,20.361,20.349,10.0]
[1680464997291,119.714,20.361,20.35,17.0]
[1680464997474,119.714,20.361,20.351,10.0]
[1680464997892,57.48,20.37,20.351,10.0]
[1680464998074,10.0,20.364,20.353,10.0]
[1680464998270,20.0,20.363,20.353,10.0]
[1680464999186,20.0,20.363,20.351,10.0]
[1680464999382,323.49439247,20.366,20.353,10.0]
[1680464999589,323.49439247,20.366,20.355,10.0]
[1680464999888,323.49439247,20.366,20.357,10.0]
[1680465000298,323.49439247,20.366,20.358,17.0]
[1680465000477,108.2195,20.379,20.358,17.0]
[1680465000678,10.0,20.371,20.358,17.0]
[1680465001188,10.0,20.378,20.358,17.0]
[1680465001505,10.0,20.378,20.359,10.0]
[1680465001506,69.06188735,20.378,20.359,10.0]
[1680465001794,69.06188735,20.378,20.361,10.0]
[1680465002005,10.0,20.378,20.363,10.0]
[1680465002383,10.0,20.378,20.361,10.0]
[1680465002580,10.0,20.378,20.363,10.0]
[1680465003388,19.645244,20.373,20.361,122.438]
[1680465003705,14.065841,20.373,20.363,10.0]
[1680465004401,14.065841,20.373,20.361,112.438]
[1680465004579,14.065841,20.373,20.362,20.0]
[1680465006702,14.065841,20.373,20.353,7.3029027]
[1680465007004,28.63,20.37,20.35,114.5248]
[1680465007303,27.0,20.369,20.35,114.5248]
[1680465007609,27.0,20.369,20.351,10.0]
[1680465008292,145.8812,20.369,20.353,10.0]
[1680465008494,10.0,20.369,20.353,10.0]
[1680465009185,10.0,20.369,20.355,10.0]
[1680465009385,43.08,20.37,20.355,10.0]
[1680465009809,110.8594,20.372,20.357,10.0]
[1680465009810,10.0,20.371,20.357,10.0]
[1680465010191,17.0,20.37,20.357,10.0]
[1680465010390,10.0,20.369,20.357,10.0]
[1680465010597,10.0,20.371,20.357,10.0]
[1680465010802,10.0,20.369,20.357,10.0]
[1680465011104,10.0,20.367,20.357,10.0]
[1680465011307,10.0,20.367,20.355,10.0]
[1680465011799,10.0,20.365,20.355,10.0]
[1680465012306,10.0,20.367,20.355,10.0]
[1680465012617,17.0,20.366,20.355,10.0]
[1680465012815,17.0,20.366,20.353,10.0]
[1680465013812,17.0,20.366,20.351,121.381]
[1680465014006,10.0,20.365,20.353,10.0]
[1680465014313,10.0,20.363,20.353,10.0]
[1680465014913,10.0,20.363,20.352,20.0]
[1680465015091,10.0,20.361,20.352,20.0]
[1680465015694,10.0,20.363,20.351,20.0]
[1680465015896,17.0,20.362,20.351,20.0]
[1680465016208,17.0,20.362,20.352,10.0]
[1680465016398,17.0,20.362,20.353,20.0]
[1680465017909,17.0,20.362,20.349,10.0]
[1680465018087,115.6304,20.361,20.347,10.0]
[1680465018407,10.0,20.359,20.344,10.0]
[1680465018608,10.0,20.357,20.344,10.0]
[1680465018809,17.0,20.356,20.344,10.0]
[1680465019118,17.0,20.356,20.343,10.0]
[1680465019300,10.0,20.355,20.343,10.0]
[1680465019493,10.0,20.353,20.343,10.0]
[1680465020131,10.0,20.353,20.342,14.98236968]
[1680465020303,10.0,20.353,20.343,20.0]
[1680465020808,10.0,20.355,20.343,20.0]
[1680465021010,10.0,20.353,20.342,10.0]
[1680465021310,10.0,20.353,20.344,10.0]
[1680465021813,10.0,20.353,20.342,10.0]
[1680465022017,10.0,20.353,20.344,10.0]
[1680465022197,10.0,20.355,20.343,20.0]
[1680465022399,17.0,20.356,20.344,10.0]
[1680465022603,17.0,20.356,20.355,19.634142]
[1680465025509,17.0,20.356,20.355,1.525842]
[1680465025713,1.52,20.355,20.33,14.51720893]
[1680465025902,42.75,20.35,20.33,14.51720893]
[1680465026101,27.0,20.349,20.33,14.51720893]
[1680465026315,27.0,20.349,20.333,20.0]
[1680465026621,10.0,20.348,20.334,10.0]
[1680465026819,17.0,20.347,20.334,10.0]
[1680465027018,10.0,20.346,20.334,10.0]
[1680465027320,10.0,20.344,20.334,10.0]
[1680465027911,17.0,20.343,20.331,109.1072]
[1680465028112,17.0,20.343,20.333,10.0]
[1680465029197,10.0,20.344,20.333,10.0]
[1680465029405,17.0,20.343,20.332,10.0]
[1680465029713,17.0,20.343,20.334,10.0]
[1680465030215,10.0,20.344,20.334,10.0]
[1680465030404,17.0,20.343,20.334,10.0]
[1680465030613,17.0,20.343,20.332,10.0]
[1680465030805,17.0,20.343,20.334,10.0]
[1680465031409,17.0,20.343,20.332,10.0]
[1680465031618,17.0,20.343,20.334,10.0]
[1680465031820,10.0,20.346,20.334,10.0]
[1680465032122,17.0,20.345,20.334,10.0]
[1680465032619,10.0,20.346,20.334,10.0]
[1680465032823,10.0,20.348,20.334,10.0]
[1680465034306,10.0,20.346,20.334,10.0]
[1680465035402,17.0,20.347,20.334,10.0]
[1680465037212,10.0,20.346,20.332,10.0]
[1680465037421,10.0,20.344,20.334,10.0]
[1680465037622,17.0,20.345,20.334,10.0]
[1680465038421,17.0,20.347,20.334,10.0]
[1680465039014,10.0,20.346,20.334,10.0]
[1680465039211,17.0,20.345,20.334,10.0]
[1680465039413,10.0,20.344,20.333,20.0]
[1680465039613,17.0,20.343,20.333,10.0]
[1680465040510,10.0,20.348,20.333,10.0]
[1680465040712,17.0,20.347,20.333,10.0]
[1680465040917,17.0,20.348,20.333,10.0]
[1680465041117,10.0,20.347,20.333,10.0]
[1680465041320,10.0,20.345,20.333,10.0]
[1680465041516,17.0,20.344,20.333,10.0]
[1680465041925,17.0,20.344,20.332,20.0]
[1680465042130,17.0,20.344,20.312,1000.0]
[1680465042423,42.89,20.34,20.322,10.0]
[1680465042728,10.0,20.338,20.324,10.0]
[1680465044028,10.0,20.339,20.332,39.305525]
[1680465044231,10.0,20.337,20.332,39.305525]
[1680465044529,10.0,20.339,20.332,39.305525]
[1680465044727,17.0,20.338,20.332,39.305525]
[1680465046822,10.0,20.338,20.332,39.305525]
[1680465047014,42.89,20.34,20.332,39.305525]
[1680465047214,10.0,20.338,20.332,39.305525]
[1680465047431,17.0,20.339,20.332,39.305525]
[1680465054431,42.89,20.34,20.332,39.305525]
[1680465054644,20.0,20.343,20.333,10.0]
[1680465054943,111.5104,20.349,20.333,10.0]
[1680465055134,10.0,20.348,20.333,10.0]
[1680465056244,10.0,20.346,20.333,10.0]
[1680465056442,17.0,20.345,20.333,10.0]
[1680465056743,10.0,20.344,20.333,10.0]
[1680465057129,17.0,20.345,20.333,10.0]
[1680465058341,10.0,20.348,20.333,10.0]
[1680465058342,10.0,20.346,20.333,10.0]
[1680465058529,17.0,20.345,20.333,10.0]
[1680465059445,10.0,20.348,20.333,10.0]
[1680465060946,10.0,20.346,20.333,10.0]
[1680465061535,17.0,20.347,20.333,10.0]
[1680465062828,10.0,20.348,20.333,10.0]
[1680465063035,115.4397,20.35,20.335,10.0]
[1680465063239,115.4397,20.35,20.337,10.0]
[1680465064040,10.0,20.355,20.337,10.0]
[1680465064234,20.0,20.354,20.339,10.0]
[1680465064438,20.0,20.354,20.341,10.0]
[1680465064744,10.0,20.353,20.341,10.0]
[1680465064932,20.0,20.352,20.341,10.0]
[1680465066244,20.0,20.354,20.341,10.0]
[1680465066930,10.0,20.352,20.339,118.2402]
[1680465067843,10.0,20.35,20.339,118.2402]
[1680465068327,10.0,20.35,20.339,108.2402]
[1680465068328,10.0,20.348,20.339,108.2402]
[1680465068847,17.0,20.347,20.339,108.2402]
[1680465069345,17.0,20.349,20.332,25.09801698]
[1680465070153,17.0,20.349,20.337,10.0]
[1680465070737,10.0,20.35,20.337,10.0]
[1680465070937,10.0,20.348,20.337,10.0]
[1680465071354,17.0,20.347,20.337,10.0]
[1680465072152,118.5411,20.35,20.337,10.0]
[1680465072153,10.0,20.348,20.337,10.0]
[1680465072454,17.0,20.347,20.337,10.0]
[1680465072629,118.5411,20.35,20.337,10.0]
[1680465072834,108.5411,20.35,20.337,10.0]
[1680465073956,10.0,20.348,20.337,10.0]
[1680465074441,17.0,20.349,20.337,10.0]
[1680465075456,108.5411,20.35,20.337,10.0]
[1680465076753,10.0,20.348,20.333,10.0]
[1680465076952,17.0,20.347,20.333,10.0]
[1680465077751,17.0,20.347,20.332,44.75370598]
[1680465077752,17.0,20.347,20.332,29.655689]
[1680465078054,10.0,20.346,20.334,10.0]
[1680465078253,17.0,20.345,20.334,10.0]
[1680465078456,10.0,20.344,20.334,10.0]
[1680465078656,17.0,20.345,20.334,10.0]
[1680465078957,10.0,20.346,20.334,10.0]
[1680465079334,10.0,20.346,20.329,129.5034]
[1680465079335,20.0,20.345,20.32,14.71195471]
[1680465079537,20.0,20.345,20.313,117.7354]
[1680465079538,57.31,20.34,20.313,117.7354]
[1680465079766,28.55,20.33,20.313,117.7354]
[1680465080355,57.32,20.33,20.313,117.7354]
[1680465080557,10.0,20.328,20.313,117.7354]
[1680465080749,17.0,20.327,20.313,117.7354]
[1680465081139,10.0,20.326,20.313,117.7354]
[1680465081359,17.0,20.325,20.313,117.7354]
[1680465081657,10.0,20.324,20.313,117.7354]
[1680465081957,17.0,20.323,20.313,117.7354]
[1680465083138,10.0,20.324,20.313,117.7354]
[1680465083347,10.0,20.322,20.313,117.7354]
[1680465084355,10.0,20.322,20.306,111.5742]
[1680465084540,10.0,20.322,20.307,27.0]
[1680465085437,10.0,20.324,20.307,34.3029027]
[1680465085654,10.0,20.322,20.307,34.3029027]
[1680465087674,10.0,20.326,20.309,10.0]
[1680465087961,111.39239126,20.33,20.311,10.0]
[1680465088148,111.39239126,20.33,20.313,10.0]
[1680465088349,68.12239126,20.33,20.315,10.0]
[1680465088862,68.12239126,20.33,20.315,17.3029027]
[1680465090663,10.0,20.333,20.315,17.3029027]
[1680465090961,10.0,20.333,20.315,10.0]
[1680465091859,10.0,20.333,20.317,10.0]
[1680465092941,10.0,20.333,20.317,127.2528]
[1680465093141,10.0,20.336,20.319,10.0]
[1680465093343,20.0,20.335,20.32,17.0]
[1680465093565,20.0,20.335,20.321,10.0]
[1680465097156,10.0,20.334,20.319,10.0]
[1680465097463,10.0,20.332,20.318,109.7695]
[1680465098254,10.0,20.33,20.318,109.7695]
[1680465099066,10.0,20.328,20.318,109.7695]
[1680465100857,10.0,20.328,20.313,7.3029027]
[1680465101058,10.0,20.326,20.313,7.3029027]
[1680465101358,10.0,20.326,20.31,20.0]
[1680465101561,10.0,20.326,20.311,7.3029027]
[1680465101862,10.0,20.326,20.312,14.46108815]
[1680465102961,10.0,20.326,20.311,7.3029027]
[1680465103167,10.0,20.324,20.311,7.3029027]
[1680465105972,10.0,20.326,20.311,17.3029027]
[1680465108258,10.0,20.326,20.311,7.3029027]
[1680465109766,10.0,20.326,20.31,35.01336129]
[1680465113065,10.0,20.326,20.312,10.0]
[1680465113275,10.0,20.326,20.313,20.0]
[1680465113464,10.0,20.326,20.314,10.0]
[1680465114666,10.0,20.326,20.313,20.0]
[1680465118061,10.0,20.326,20.313,10.0]
[1680465118261,10.0,20.328,20.313,10.0]
[1680465118574,10.0,20.328,20.315,10.0]
[1680465120776,10.0,20.328,20.315,17.3029027]
[1680465121362,10.0,20.328,20.315,7.3029027]
[1680465121566,133.14408829,20.337,20.315,7.3029027]
[1680465121771,20.0,20.334,20.316,17.0]
[1680465122078,10.0,20.336,20.317,27.3029027]
[1680465122278,10.0,20.338,20.318,140.3815]
[1680465122572,10.0,20.338,20.319,20.0]
[1680465122877,10.0,20.338,20.32,17.0]
[1680465123070,10.0,20.338,20.321,20.0]
[1680465123275,10.0,20.338,20.322,17.0]
[1680465123569,10.0,20.338,20.323,20.0]
[1680465123775,10.0,20.338,20.324,10.0]
[1680465124161,17.0,20.337,20.324,10.0]
[1680465124362,10.0,20.336,20.324,10.0]
[1680465125185,17.0,20.337,20.324,10.0]
[1680465125392,27.0,20.338,20.324,10.0]
[1680465127666,17.0,20.338,20.324,10.0]
[1680465127869,10.0,20.338,20.324,10.0]
[1680465130861,17.0,20.339,20.324,10.0]
[1680465131063,10.0,20.338,20.324,10.0]
[1680465133993,10.0,20.338,20.323,20.0]
[1680465134588,10.0,20.338,20.324,10.0]
[1680465136292,27.0,20.339,20.324,10.0]
[1680465136481,17.0,20.339,20.324,10.0]
[1680465136676,42.97,20.34,20.324,10.0]
[1680465136883,54.99304848,20.346,20.325,17.0]
[1680465137175,195.0411,20.35,20.325,17.0]
[1680465137176,195.0411,20.35,20.326,10.0]
[1680465137495,30.0,20.347,20.327,17.0]
[1680465137794,30.0,20.347,20.328,10.0]
[1680465137998,30.0,20.347,20.329,17.0]
[1680465138291,10.0,20.346,20.33,10.0]
[1680465138484,20.0,20.345,20.33,10.0]
[1680465138676,10.0,20.344,20.331,17.0]
[1680465138881,10.0,20.344,20.332,10.0]
[1680465139084,20.0,20.343,20.332,10.0]
[1680465139979,10.0,20.344,20.332,10.0]
[1680465141593,10.0,20.347,20.334,10.0]
[1680465142092,84.94517163,20.348,20.334,10.0]
[1680465142296,10.0,20.346,20.334,10.0]
[1680465142676,17.0,20.347,20.334,10.0]
[1680465142885,10.0,20.347,20.334,10.0]
[1680465143078,10.0,20.345,20.334,10.0]
[1680465143285,10.0,20.347,20.334,10.0]
[1680465143791,10.0,20.349,20.334,10.0]
[1680465144897,10.0,20.347,20.334,10.0]
[1680465145490,10.0,20.349,20.334,10.0]
[1680465146799,17.0,20.348,20.333,20.0]
[1680465146980,10.0,20.347,20.331,10.0]
[1680465147178,17.0,20.346,20.332,20.0]
[1680465147400,10.0,20.345,20.333,10.0]
[1680465147909,10.0,20.343,20.333,10.0]
[1680465148284,17.0,20.344,20.333,10.0]
[1680465149800,10.0,20.345,20.333,10.0]
[1680465149995,17.0,20.344,20.333,10.0]
[1680465151003,10.0,20.345,20.333,10.0]
[1680465151890,10.0,20.343,20.333,10.0]
[1680465152289,10.0,20.343,20.332,20.0]
[1680465152598,17.0,20.344,20.332,20.0]
[1680465153294,10.0,20.347,20.333,10.0]
[1680465153602,17.0,20.346,20.333,10.0]
[1680465154303,10.0,20.349,20.334,17.0]
[1680465154607,110.0872,20.35,20.334,17.0]
[1680465154807,110.0872,20.35,20.335,10.0]
[1680465154990,110.0872,20.35,20.336,17.0]
[1680465155209,110.0872,20.35,20.337,10.0]
[1680465157314,51.00255404,20.358,20.337,10.0]
[1680465157489,92.2393,20.361,20.34,28.51]
[1680465157806,92.2393,20.361,20.341,17.0]
[1680465157992,92.2393,20.361,20.342,30.0]
[1680465158190,92.2393,20.361,20.343,17.0]
[1680465158389,92.2393,20.361,20.343,24.3029027]
[1680465158788,92.2393,20.361,20.344,7.3029027]
[1680465159006,92.2393,20.361,20.345,17.0]
[1680465159503,92.2393,20.361,20.346,10.0]
[1680465159711,92.2393,20.361,20.347,17.0]
[1680465160508,92.2393,20.361,20.348,10.0]
[1680465160713,92.2393,20.361,20.349,17.0]
[1680465160890,117.6025,20.366,20.349,17.0]
[1680465161091,117.6025,20.366,20.35,10.0]
[1680465161292,10.0,20.365,20.35,10.0]
[1680465161592,20.0,20.364,20.35,10.0]
[1680465161915,10.0,20.363,20.35,118.2958]
[1680465162289,10.0,20.363,20.351,17.0]
[1680465162493,10.0,20.365,20.352,20.0]
[1680465162724,10.0,20.367,20.353,17.0]
[1680465162895,10.0,20.367,20.353,27.0]
[1680465163095,10.0,20.367,20.354,10.0]
[1680465164198,10.0,20.369,20.354,10.0]
[1680465164508,10.0,20.367,20.354,10.0]
[1680465165014,10.0,20.367,20.353,10.0]
[1680465165511,19.656275,20.359,20.353,10.0]
[1680465165706,19.656275,20.359,20.352,20.0]
[1680465166413,19.656275,20.359,20.352,10.0]
[1680465166606,19.656275,20.359,20.353,20.0]
[1680465168613,28.67,20.37,20.354,10.0]
[1680465168914,10.0,20.377,20.354,27.0]
[1680465169414,10.0,20.375,20.36,28.56]
[1680465169720,10.0,20.379,20.362,10.0]
[1680465170007,10.0,20.379,20.364,10.0]
[1680465170223,10.0,20.379,20.366,10.0]
[1680465171810,10.0,20.379,20.364,10.0]
[1680465172008,37.0,20.378,20.354,10.0]
[1680465172212,37.0,20.378,20.353,115.5905]
[1680465172410,113.7291,20.377,20.353,115.5905]
[1680465172616,37.0,20.376,20.353,115.5905]
[1680465172908,54.3029027,20.376,20.354,10.0]
[1680465173212,7.3029027,20.375,20.354,10.0]
[1680465173512,47.0,20.374,20.354,10.0]
[1680465174009,10.0,20.372,20.354,10.0]
[1680465174216,10.0,20.37,20.354,10.0]
[1680465174406,10.0,20.368,20.354,10.0]
[1680465174911,10.0,20.366,20.354,10.0]
[1680465175603,10.0,20.366,20.351,10.0]
[1680465175803,10.0,20.364,20.352,20.0]
[1680465176003,10.0,20.364,20.353,10.0]
[1680465176909,10.0,20.366,20.353,10.0]
[1680465177409,10.0,20.37,20.353,10.0]
[1680465177410,10.0,20.37,20.355,10.0]
[1680465178215,10.0,20.37,20.357,10.0]
[1680465179019,10.0,20.371,20.357,10.0]
[1680465179218,10.0,20.369,20.357,10.0]
[1680465179603,10.0,20.369,20.355,10.0]
[1680465179916,10.0,20.369,20.354,131.3276]
[1680465180116,10.0,20.369,20.35,108.2958]
[1680465180304,17.0,20.368,20.351,20.0]
[1680465180504,10.0,20.367,20.351,20.0]
[1680465180818,10.0,20.365,20.352,10.0]
[1680465181018,10.0,20.365,20.353,20.0]
[1680465182405,10.0,20.363,20.353,20.0]
[1680465182607,17.0,20.362,20.353,20.0]
[1680465182810,17.0,20.362,20.353,10.0]
[1680465183018,17.0,20.362,20.352,20.0]